[Event "European School-ch 2019"]
[Site "Mamaia"]
[Date "2019.06.02"]
[Round "3.25"]
[White "Sapocinic, Semion"]
[Black "Popescu, Stefan-Adrian"]
[Result "1-0"]
[ECO "B41"]
[WhiteElo "1697"]
[BlackElo "1326"]
[Annotator "NA"]
[PlyCount "89"]
[EventDate "2019.05.31"]
[EventType "swiss"]
[EventCountry "ROU"]
[SourceTitle "playchess.com"]
[Source "ChessBase"]
[SourceQuality "1"]
[TimeControl "40/5400+30:1800+30"]

1. e4 {[%emt 0:00:00]} c5 {[%emt 0:00:08]} 2. Nf3 {[%emt 0:00:00]} e6 {[%emt 0:01:00]} 3. d4 {[%emt 0:01:01]} cxd4 {[%emt 0:00:45]} 4. Nxd4 {[%emt 0:00:08]} a6 {[%emt 0:02:03]} 5. c4 {[%emt 0:01:41]} Qc7 {[%emt 0:00:27]} 6. Nc3 {[%emt 0:00:22]} Nf6 {[%emt 0:00:40]} 7. Be2 {[%emt 0:01:58]} d6 {[%emt 0:00:33]} 8. Be3 {[%emt 0:00:23]} Be7 {[%emt 0:00:16]} 9. O-O {[%emt 0:00:23]} O-O {[%emt 0:03:03]} 10. f3 {[%emt 0:00:25]} b6 {[%emt 0:00:19]} 11. Rc1 {[%emt 0:00:20]} Bb7 {[%emt 0:00:09]} 12. Qd2 {[%emt 0:01:24]} Nbd7 {[%emt 0:06:11]} 13. Rfd1 {[%emt 0:01:29]} Ne5 {[%emt 0:01:17]} 14. b4 {[%emt 0:02:40]} Rfd8 {[%emt 0:03:01]} 15. Nb3 {[%emt 0:00:29]} Nfd7 {[%emt 0:02:33]} 16. f4 {[%emt 0:03:41]} Ng6 {[%emt 0:00:45]} 17. a4 {[%emt 0:08:50]} Nf6 {[%emt 0:02:28]} 18. a5 {[%emt 0:03:38]} bxa5 {[%emt 0:01:56]} 19. bxa5 {[%emt 0:00:10]} Qc6 {[%emt 0:01:59]} 20. Bb6 {[%emt 0:02:20]} Rdc8 {[%emt 0:07:52]} 21. Nd4 {[%emt 0:01:41]} Qe8 {[%emt 0:00:28]} 22. Qe3 {[%emt 0:01:29]} Nd7 {[%emt 0:00:38]} 23. f5 {[%emt 0:01:47]} Ngf8 {[%emt 0:01:39]} 24. fxe6 {[%emt 0:01:04]} fxe6 {[%emt 0:00:13]} 25. Qh3 {[%emt 0:02:34]} Bg5 {[%emt 0:01:33]} 26. Rb1 {[%emt 0:01:31]} Nf6 {[%emt 0:01:24]} 27. Qg3 {[%emt 0:01:42]} Bh6 {[%emt 0:07:59]} 28. Qxd6 {[%emt 0:01:59]} Nxe4 {[%emt 0:00:13]} 29. Nxe4 {[%emt 0:04:47]} Bxe4 {[%emt 0:00:10]} 30. Bd3 {[%emt 0:02:08]} Bxd3 {[%emt 0:03:54]} 31. Rxd3 {[%emt 0:02:30]} Rxc4 {[%emt 0:00:48]} 32. Re1 {[%emt 0:00:15]} Rc1 {[%emt 0:00:24]} 33. Rxc1 {[%emt 0:00:50]} Bxc1 {[%emt 0:00:04]} 34. Nb3 {[%emt 0:01:37]} Bh6 {[%emt 0:00:45]} 35. Nc5 {[%emt 0:02:01]} Qg6 {[%emt 0:03:20]} 36. h3 {[%emt 0:01:29]} Qf6 {[%emt 0:01:53]} 37. Rf3 {[%emt 0:01:54]} Qg6 {[%emt 0:00:57]} 38. Qc6 {[%emt 0:02:13]} Re8 {[%emt 0:01:30]} 39. Nxa6 {[%emt 0:01:42]} Qb1+ {[%emt 0:00:38]} 40. Kh2 {[%emt 0:00:00]} Qg6 {[%emt 0:00:00]} 41. Nc7 {[%emt 0:02:08]} Rd8 {[%emt 0:06:18]} 42. a6 {[%emt 0:02:03]} Rd2 {[%emt 0:00:27]} 43. Bf2 {[%emt 0:03:18]} Qg5 {[%emt 0:02:22]} 44. Rxf8+ {[%emt 0:00:23]} Kxf8 {[%emt 0:00:09]} 45. Qe8# {[%emt 0:00:00] Qd8} 1-0

[Event "European School-ch 2019"]
[Site "Mamaia"]
[Date "2019.06.02"]
[Round "3.26"]
[White "Butolo, Alexandru-Mircea"]
[Black "Cotoros, Eduard"]
[Result "1-0"]
[ECO "B36"]
[WhiteElo "1553"]
[BlackElo "1624"]
[Annotator "NA"]
[PlyCount "149"]
[EventDate "2019.05.31"]
[EventType "swiss"]
[EventCountry "ROU"]
[SourceTitle "playchess.com"]
[Source "ChessBase"]
[SourceQuality "1"]
[TimeControl "40/5400+30:1800+30"]

1. e4 {[%emt 0:00:07]} c5 {[%emt 0:00:00]} 2. Nf3 {[%emt 0:00:07]} g6 {[%emt 0:00:00]} 3. d4 {[%emt 0:03:41]} cxd4 {[%emt 0:00:00]} 4. Nxd4 {[%emt 0:00:54]} Nc6 {[%emt 0:00:05]} 5. c4 {[%emt 0:00:54]} Nf6 {[%emt 0:00:12]} 6. Nc3 {[%emt 0:00:22]} d6 {[%emt 0:00:10]} 7. Be2 {[%emt 0:00:34]} Bg7 {[%emt 0:01:11]} 8. Be3 {[%emt 0:01:43]} Nxd4 {[%emt 0:00:10]} 9. Bxd4 {[%emt 0:00:14]} O-O {[%emt 0:00:32]} 10. O-O {[%emt 0:01:18]} Be6 {[%emt 0:00:13]} 11. f4 {[%emt 0:03:17]} Qa5 {[%emt 0:00:48]} 12. Qc2 {[%emt 0:04:04]} Rfc8 {[%emt 0:03:13]} 13. b3 b5 {[%emt 0:15:04]} 14. f5 {[%emt 0:13:58]} Bd7 {[%emt 0:00:22]} 15. Qb2 {[%emt 0:03:34]} bxc4 {[%emt 0:17:31]} 16. Bxc4 {[%emt 0:04:10]} Rab8 {[%emt 0:00:41]} 17. Qe2 {[%emt 0:05:03]} Bc6 {[%emt 0:06:05]} 18. fxg6 {[%emt 0:11:30]} hxg6 {[%emt 0:00:23]} 19. e5 {[%emt 0:02:50]} dxe5 {[%emt 0:04:01]} 20. Bxe5 {[%emt 0:00:23]} Rb4 {[%emt 0:01:01]} 21. a3 {[%emt 0:00:42]} Rxc4 {[%emt 0:01:36]} 22. bxc4 Qc5+ {[%emt 0:01:14]} 23. Kh1 {[%emt 0:03:58]} Bd7 {[%emt 0:01:30]} 24. Bxf6 {[%emt 0:14:58]} exf6 {[%emt 0:03:04]} 25. Nd5 {[%emt 0:00:53]} Re8 {[%emt 0:00:32]} 26. Qd2 {[%emt 0:03:25]} Be6 {[%emt 0:05:34]} 27. Nxf6+ {[%emt 0:02:23]} Bxf6 {[%emt 0:00:21]} 28. Rxf6 {[%emt 0:00:09]} Qxc4 {[%emt 0:00:11]} 29. Rf4 {[%emt 0:02:32]} Qd5 {[%emt 0:02:00]} 30. Rd4 {[%emt 0:01:59]} Qe5 {[%emt 0:00:16]} 31. Re1 {[%emt 0:00:12]} Qf6 {[%emt 0:01:37]} 32. Rf4 {[%emt 0:00:29]} Qg5 {[%emt 0:00:16]} 33. Rd4 {[%emt 0:03:04]} Qf6 {[%emt 0:02:19]} 34. Rd1 {[%emt 0:01:31]} a6 {[%emt 0:06:41]} 35. Rd8 {[%emt 0:01:34]} Rxd8 {[%emt 0:00:23]} 36. Qxd8+ {[%emt 0:00:09]} Qxd8 {[%emt 0:00:05]} 37. Rxd8+ {[%emt 0:00:08]} Kg7 {[%emt 0:00:06]} 38. Rd6 {[%emt 0:00:12]} Bc4 {[%emt 0:00:05]} 39. Kg1 {[%emt 0:00:09]} Kf8 {[%emt 0:00:15]} 40. Kf2 {[%emt 0:00:00]} Ke7 {[%emt 0:00:00]} 41. Rc6 {[%emt 0:00:44]} Bb5 {[%emt 0:00:22]} 42. Rb6 {[%emt 0:00:23]} Kd7 {[%emt 0:00:36]} 43. Kg3 {[%emt 0:00:12]} Ke7 {[%emt 0:00:05]} 44. Kf4 {[%emt 0:00:31]} Kd7 {[%emt 0:08:32]} 45. Kg5 {[%emt 0:01:35]} Kc7 {[%emt 0:01:41]} 46. Rf6 {[%emt 0:01:00]} Bc4 {[%emt 0:00:07]} 47. g4 {[%emt 0:00:25]} Kd7 {[%emt 0:00:23]} 48. h4 {[%emt 0:00:12]} Be6 {[%emt 0:02:32]} 49. h5 {[%emt 0:00:33]} gxh5 {[%emt 0:00:30]} 50. gxh5 {[%emt 0:00:29]} Ke7 {[%emt 0:00:05]} 51. h6 {[%emt 0:00:31]} Kf8 {[%emt 0:00:08]} 52. Rxe6 {[%emt 0:00:05]} fxe6 {[%emt 0:00:10]} 53. Kf6 {[%emt 0:00:08]} Kg8 {[%emt 0:00:33]} 54. Kxe6 {[%emt 0:00:08]} Kh7 {[%emt 0:01:47]} 55. Kd6 {[%emt 0:00:07]} Kxh6 {[%emt 0:00:17]} 56. Kc6 {[%emt 0:00:17]} Kg6 {[%emt 0:00:05]} 57. Kb6 {[%emt 0:00:05]} Kf6 {[%emt 0:00:03]} 58. Kxa6 {[%emt 0:00:05]} Ke6 {[%emt 0:00:04]} 59. a4 Kd6 {[%emt 0:00:06]} 60. Kb7 {[%emt 0:01:29]} Kc5 {[%emt 0:00:09]} 61. a5 {[%emt 0:00:07]} Kb5 {[%emt 0:00:03]} 62. a6 {[%emt 0:00:06]} Kc5 {[%emt 0:00:04]} 63. a7 {[%emt 0:00:04]} Kd6 {[%emt 0:00:04]} 64. a8=Q {[%emt 0:00:12]} Ke7 {[%emt 0:00:06]} 65. Qc8 {[%emt 0:00:08]} Kf7 66. Qd8 Kg7 {[%emt 0:00:44]} 67. Qe8 {[%emt 0:00:39]} Kh7 {[%emt 0:00:03]} 68. Qf8 {[%emt 0:00:17]} Kg6 {[%emt 0:00:03]} 69. Kc6 {[%emt 0:00:07]} Kh7 {[%emt 0:00:03]} 70. Qf6 {[%emt 0:00:16]} Kg8 {[%emt 0:00:20]} 71. Qe7 {[%emt 0:00:21]} Kh8 {[%emt 0:00:04]} 72. Kd6 {[%emt 0:00:07]} Kg8 {[%emt 0:00:03]} 73. Ke6 {[%emt 0:00:06]} Kh8 {[%emt 0:00:03]} 74. Kf6 {[%emt 0:00:09]} Kg8 {[%emt 0:00:05]} 75. Qg7# {[%emt 0:00:04]} 1-0

[Event "European School-ch 2019"]
[Site "Mamaia"]
[Date "2019.06.02"]
[Round "3.27"]
[White "Cnejev, Vladimir-Alexandru"]
[Black "Anghel, Teodor-Andrei"]
[Result "1-0"]
[ECO "B30"]
[WhiteElo "1970"]
[BlackElo "1415"]
[Annotator "NA"]
[PlyCount "88"]
[EventDate "2019.05.31"]
[EventType "swiss"]
[EventCountry "ROU"]
[SourceTitle "playchess.com"]
[Source "ChessBase"]
[SourceQuality "1"]
[TimeControl "40/5400+30:1800+30"]

1. e4 {[%emt 0:00:00]} c5 {[%emt 0:00:00]} 2. Nf3 {[%emt 0:00:00]} Nc6 {[%emt 0:00:00]} 3. c3 {[%emt 0:00:00]} d5 {[%emt 0:00:00]} 4. exd5 {[%emt 0:00:00]} Qxd5 {[%emt 0:00:03]} 5. d4 {[%emt 0:00:05]} Bf5 {[%emt 0:00:14]} 6. Be3 {[%emt 0:00:15]} cxd4 {[%emt 0:00:35]} 7. cxd4 {[%emt 0:00:08]} Bxb1 {[%emt 0:00:12]} 8. Qxb1 {[%emt 0:03:27]} e6 {[%emt 0:00:10]} 9. a3 {[%emt 0:01:52]} Nf6 {[%emt 0:00:36]} 10. Be2 {[%emt 0:02:48]} Be7 {[%emt 0:01:01]} 11. O-O {[%emt 0:00:33]} O-O {[%emt 0:00:09]} 12. Qd3 {[%emt 0:03:37]} Rac8 {[%emt 0:02:29]} 13. b4 {[%emt 0:03:41]} a6 {[%emt 0:02:57]} 14. Rac1 {[%emt 0:02:34]} Rfd8 {[%emt 0:00:47]} 15. Rfd1 {[%emt 0:00:23]} Qd6 {[%emt 0:18:02]} 16. Kh1 {[%emt 0:35:50]} Nd5 {[%emt 0:04:25]} 17. Qb1 {[%emt 0:04:30]} Bf6 {[%emt 0:02:54]} 18. Nd2 {[%emt 0:06:46]} Qe7 {[%emt 0:30:12]} 19. Ne4 {[%emt 0:09:34]} Nxe3 {[%emt 0:07:08]} 20. fxe3 {[%emt 0:00:01]} Bg5 {[%emt 0:01:57]} 21. Nxg5 {[%emt 0:01:22]} Qxg5 {[%emt 0:00:15]} 22. Qe4 {[%emt 0:02:26]} Qg6 {[%emt 0:03:14]} 23. Qxg6 {[%emt 0:00:47]} hxg6 {[%emt 0:00:09]} 24. Bf3 {[%emt 0:00:10]} Rd6 {[%emt 0:01:45]} 25. Rc5 {[%emt 0:03:36]} Kf8 {[%emt 0:00:36]} 26. Rdc1 {[%emt 0:00:38]} Ke7 {[%emt 0:01:22]} 27. Kg1 {[%emt 0:01:34]} Kd7 {[%emt 0:03:04]} 28. a4 {[%emt 0:03:43]} Ra8 {[%emt 0:01:37]} 29. b5 {[%emt 0:01:10]} axb5 {[%emt 0:01:29]} 30. axb5 {[%emt 0:00:17]} Na5 {[%emt 0:00:45]} 31. Rc7+ {[%emt 0:02:20]} Ke8 {[%emt 0:00:33]} 32. Bxb7 {[%emt 0:02:07]} Rb8 {[%emt 0:00:50]} 33. Ba6 {[%emt 0:01:04]} Rdb6 {[%emt 0:01:16]} 34. Rc8+ {[%emt 0:00:58]} Ke7 {[%emt 0:00:09]} 35. R1c7+ {[%emt 0:00:31]} Kf6 {[%emt 0:00:27]} 36. Kf2 {[%emt 0:00:53]} Rxc8 {[%emt 0:00:49]} 37. Rxc8 {[%emt 0:00:02]} Ke7 {[%emt 0:00:46]} 38. Rc7+ {[%emt 0:00:08]} Ke8 {[%emt 0:00:08]} 39. Ke2 {[%emt 0:00:00]} Kf8 {[%emt 0:00:00]} 40. Kd3 {[%emt 0:00:00]} Nb3 {[%emt 0:00:00]} 41. Kc2 {[%emt 0:01:34]} Na5 {[%emt 0:01:24]} 42. Kc3 {[%emt 0:00:22]} g5 {[%emt 0:00:13]} 43. Kb4 {[%emt 0:00:07]} Nc6+ {[%emt 0:01:12]} 44. Rxc6 {[%emt 0:00:08]} Rxb5+ {[%emt 0:00:28]} 1-0

[Event "European School-ch 2019"]
[Site "Mamaia"]
[Date "2019.06.02"]
[Round "3.28"]
[White "Zheng, Harry Z"]
[Black "Ochedzan, Filip"]
[Result "1-0"]
[ECO "B90"]
[WhiteElo "1653"]
[BlackElo "1298"]
[Annotator "NA"]
[PlyCount "106"]
[EventDate "2019.05.31"]
[EventType "swiss"]
[EventCountry "ROU"]
[SourceTitle "playchess.com"]
[Source "ChessBase"]
[SourceQuality "1"]
[TimeControl "40/5400+30:1800+30"]

1. e4 {[%emt 0:00:00]} c5 {[%emt 0:00:00]} 2. Nf3 {[%emt 0:00:04]} d6 {[%emt 0:00:28]} 3. d4 {[%emt 0:00:31]} cxd4 {[%emt 0:00:42]} 4. Nxd4 {[%emt 0:00:17]} Nf6 {[%emt 0:00:58]} 5. Nc3 {[%emt 0:00:25]} a6 {[%emt 0:00:50]} 6. Be3 {[%emt 0:00:49]} e5 {[%emt 0:01:19]} 7. Nf3 {[%emt 0:01:33]} Be6 {[%emt 0:01:40]} 8. Be2 {[%emt 0:03:45]} Be7 {[%emt 0:01:42]} 9. O-O {[%emt 0:01:19]} O-O {[%emt 0:02:01]} 10. Bg5 {[%emt 0:03:26]} Nbd7 {[%emt 0:01:58]} 11. Bxf6 {[%emt 0:03:57]} Nxf6 {[%emt 0:00:25]} 12. Re1 {[%emt 0:06:30]} Qb6 {[%emt 0:04:22]} 13. a3 {[%emt 0:06:47]} Rac8 {[%emt 0:02:45]} 14. Bd3 {[%emt 0:02:45]} Bg4 {[%emt 0:06:32]} 15. Rb1 {[%emt 0:04:11]} Rc7 {[%emt 0:04:46]} 16. h3 {[%emt 0:01:35]} Be6 {[%emt 0:02:51]} 17. Qe2 {[%emt 0:02:09]} Rfc8 {[%emt 0:04:34]} 18. Nd2 {[%emt 0:05:13]} Nd7 {[%emt 0:02:54]} 19. Nf1 {[%emt 0:01:38]} Nc5 {[%emt 0:04:45]} 20. Ne3 {[%emt 0:04:34]} Nxd3 {[%emt 0:01:42]} 21. Qxd3 {[%emt 0:00:43]} Qd4 {[%emt 0:01:57]} 22. Ned5 {[%emt 0:03:34]} Bxd5 {[%emt 0:09:45]} 23. Qxd4 {[%emt 0:03:10]} exd4 {[%emt 0:00:48]} 24. Nxd5 {[%emt 0:00:09]} Rd7 {[%emt 0:00:24]} 25. Nb6 {[%emt 0:01:28]} Rdc7 {[%emt 0:00:52]} 26. Nxc8 {[%emt 0:00:40]} Rxc8 {[%emt 0:00:07]} 27. e5 {[%emt 0:02:24]} Rxc2 {[%emt 0:00:58]} 28. exd6 {[%emt 0:00:27]} Bxd6 {[%emt 0:00:19]} 29. Re8+ {[%emt 0:00:07]} Bf8 {[%emt 0:00:33]} 30. Rd1 {[%emt 0:01:20]} f6 {[%emt 0:01:10]} 31. b4 {[%emt 0:07:12]} Kf7 {[%emt 0:02:28]} 32. Rb8 {[%emt 0:00:58]} b5 {[%emt 0:00:52]} 33. Rb7+ {[%emt 0:02:23]} Kg6 {[%emt 0:01:41]} 34. Rd3 {[%emt 0:11:36]} Bd6 {[%emt 0:01:43]} 35. g3 {[%emt 0:02:09]} Rc4 {[%emt 0:04:15]} 36. Rb6 {[%emt 0:01:08]} Rc1+ {[%emt 0:01:44]} 37. Kg2 {[%emt 0:00:16]} Be5 {[%emt 0:01:02]} 38. f4 {[%emt 0:01:54]} Bc7 {[%emt 0:00:26]} 39. Rxa6 {[%emt 0:00:11]} Rc4 {[%emt 0:00:36]} 40. Ra7 {[%emt 0:00:00]} Kf5 {[%emt 0:00:00]} 41. Kf3 {[%emt 0:02:30]} h5 {[%emt 0:02:05]} 42. Rb7 {[%emt 0:00:29]} Ke6 {[%emt 0:02:28]} 43. Rxb5 {[%emt 0:00:19]} f5 {[%emt 0:01:40]} 44. a4 {[%emt 0:03:30]} g6 {[%emt 0:01:05]} 45. a5 {[%emt 0:00:28]} Rc6 {[%emt 0:01:37]} 46. Rc5 {[%emt 0:02:16]} Rxc5 {[%emt 0:00:20]} 47. bxc5 {[%emt 0:00:09]} Kd5 {[%emt 0:00:49]} 48. a6 {[%emt 0:00:18]} Bb8 {[%emt 0:00:33]} 49. Ra3 {[%emt 0:02:18]} Ba7 {[%emt 0:00:08]} 50. Ra5 {[%emt 0:01:37]} Kc6 {[%emt 0:00:54]} 51. Ke2 {[%emt 0:00:24]} Kd5 {[%emt 0:01:43]} 52. Kd3 {[%emt 0:00:13]} Kc6 {[%emt 0:01:00]} 53. Kxd4 {[%emt 0:00:15]} g5 {[%emt 0:00:21] Ke4 Kd5+} 1-0

[Event "European School-ch 2019"]
[Site "Mamaia"]
[Date "2019.06.02"]
[Round "3.29"]
[White "Qalabegashvili, Data"]
[Black "Durucay, Uygar"]
[Result "1/2-1/2"]
[ECO "B01"]
[WhiteElo "1309"]
[BlackElo "1575"]
[Annotator "NA"]
[PlyCount "65"]
[EventDate "2019.05.31"]
[EventType "swiss"]
[EventCountry "ROU"]
[SourceTitle "playchess.com"]
[Source "ChessBase"]
[SourceQuality "1"]
[TimeControl "40/5400+30:1800+30"]

1. e4 {[%emt 0:00:00]} d5 {[%emt 0:00:00]} 2. exd5 {[%emt 0:00:00]} Qxd5 {[%emt 0:00:08]} 3. Nc3 {[%emt 0:00:00]} Qa5 {[%emt 0:00:20]} 4. g3 {[%emt 0:00:00]} Nf6 {[%emt 0:00:35]} 5. Bg2 {[%emt 0:00:05]} c6 {[%emt 0:00:25]} 6. Nge2 {[%emt 0:00:15]} Bf5 {[%emt 0:02:39]} 7. b4 {[%emt 0:00:21]} Qb6 {[%emt 0:03:47]} 8. O-O {[%emt 0:00:42]} e6 {[%emt 0:00:56]} 9. Rb1 {[%emt 0:00:29]} Qc7 {[%emt 0:00:46]} 10. d3 {[%emt 0:01:46]} Nbd7 {[%emt 0:01:14]} 11. b5 {[%emt 0:00:32]} c5 {[%emt 0:01:08]} 12. Re1 {[%emt 0:01:47]} Be7 {[%emt 0:01:16]} 13. Nf4 {[%emt 0:00:40]} O-O {[%emt 0:02:55]} 14. Qf3 {[%emt 0:01:09]} Rab8 {[%emt 0:01:21]} 15. Qe2 {[%emt 0:03:57]} Bg4 {[%emt 0:03:28]} 16. f3 Bf5 {[%emt 0:00:26]} 17. Ne4 {[%emt 0:07:37]} Rfe8 {[%emt 0:03:19]} 18. g4 {[%emt 0:04:38]} Bxe4 {[%emt 0:02:30]} 19. dxe4 {[%emt 0:00:38]} Bd6 {[%emt 0:00:22]} 20. Qe3 {[%emt 0:07:21]} Be5 {[%emt 0:01:09]} 21. Kh1 {[%emt 0:02:47]} Nb6 {[%emt 0:02:31]} 22. Nh5 {[%emt 0:09:55]} Nxh5 {[%emt 0:02:48]} 23. gxh5 {[%emt 0:00:27]} h6 {[%emt 0:00:24]} 24. f4 {[%emt 0:03:31]} Bd4 {[%emt 0:00:57]} 25. Qg3 {[%emt 0:02:05]} Nc4 {[%emt 0:00:57]} 26. e5 {[%emt 0:06:29]} Qa5 {[%emt 0:13:34]} 27. a3 {[%emt 0:11:15]} Rbd8 {[%emt 0:02:43]} 28. Rb3 {[%emt 0:03:20]} Nd2 {[%emt 0:04:15]} 29. Rd3 {[%emt 0:06:36]} Nb1 {[%emt 0:00:13]} 30. Rb3 {[%emt 0:00:36]} Nd2 {[%emt 0:09:09]} 31. Rd3 {[%emt 0:00:44]} Nb1 {[%emt 0:07:53]} 32. Rb3 {[%emt 0:01:38]} Nd2 {[%emt 0:02:27]} 33. Rd3 {[%emt 0:00:07]} 1/2-1/2

[Event "European School-ch 2019"]
[Site "Mamaia"]
[Date "2019.06.02"]
[Round "3.30"]
[White "Korovko, Iakov"]
[Black "Karimli, Yusif"]
[Result "0-1"]
[ECO "C10"]
[WhiteElo "1232"]
[BlackElo "1470"]
[Annotator "NA"]
[PlyCount "154"]
[EventDate "2019.05.31"]
[EventType "swiss"]
[EventCountry "ROU"]
[SourceTitle "playchess.com"]
[Source "ChessBase"]
[SourceQuality "1"]
[TimeControl "40/5400+30:1800+30"]

1. e4 {[%emt 0:00:00]} e6 {[%emt 0:00:00]} 2. d4 {[%emt 0:00:01]} d5 {[%emt 0:00:00]} 3. Nc3 {[%emt 0:00:16]} dxe4 {[%emt 0:01:05]} 4. Nxe4 {[%emt 0:00:17]} Nd7 {[%emt 0:01:37]} 5. Nf3 {[%emt 0:01:14]} Ngf6 {[%emt 0:01:37]} 6. Bd3 {[%emt 0:00:42]} Nxe4 {[%emt 0:01:21]} 7. Bxe4 {[%emt 0:00:17]} Nf6 {[%emt 0:00:57]} 8. Bg5 {[%emt 0:02:02]} Be7 {[%emt 0:04:19]} 9. Bd3 {[%emt 0:03:24]} O-O {[%emt 0:01:57]} 10. O-O {[%emt 0:00:18]} h6 {[%emt 0:04:57]} 11. Bh4 {[%emt 0:00:21]} c5 {[%emt 0:02:11]} 12. dxc5 {[%emt 0:05:17]} Bxc5 {[%emt 0:01:54]} 13. Qe2 {[%emt 0:00:19]} Qe7 {[%emt 0:10:54]} 14. Nd2 {[%emt 0:01:43]} Qd8 {[%emt 0:11:59]} 15. Rad1 {[%emt 0:02:05]} Be7 {[%emt 0:04:25]} 16. Nf3 {[%emt 0:01:17]} Qa5 {[%emt 0:01:44]} 17. a3 {[%emt 0:02:20]} Rd8 {[%emt 0:07:19]} 18. Rfe1 {[%emt 0:01:42]} Qh5 {[%emt 0:11:09]} 19. Be4 {[%emt 0:10:07]} Qc5 {[%emt 0:09:24]} 20. Rxd8+ {[%emt 0:02:00]} Bxd8 {[%emt 0:02:46]} 21. Rd1 {[%emt 0:00:24]} Be7 {[%emt 0:01:33]} 22. Ne5 {[%emt 0:01:55]} Nxe4 23. Bxe7 Qxe5 {[%emt 0:03:12]} 24. f3 {[%emt 0:01:05]} f5 {[%emt 0:02:03]} 25. fxe4 {[%emt 0:00:34]} Qxe4 {[%emt 0:01:08]} 26. Qxe4 {[%emt 0:01:14]} fxe4 {[%emt 0:00:05]} 27. Re1 {[%emt 0:01:54]} Bd7 {[%emt 0:00:52]} 28. Rxe4 {[%emt 0:00:29]} Re8 {[%emt 0:00:11]} 29. Bd6 {[%emt 0:00:41]} Bc6 {[%emt 0:00:38]} 30. Re5 {[%emt 0:02:44]} Kf7 {[%emt 0:00:12]} 31. c4 {[%emt 0:00:31]} Kf6 {[%emt 0:02:02]} 32. c5 {[%emt 0:00:42]} a5 {[%emt 0:00:55]} 33. b3 {[%emt 0:00:56]} Bd5 {[%emt 0:00:21]} 34. Re3 {[%emt 0:00:51]} Ra8 {[%emt 0:01:17]} 35. Kf2 {[%emt 0:02:09]} Ra6 {[%emt 0:00:58]} 36. Be5+ {[%emt 0:05:50]} Kf7 {[%emt 0:00:33]} 37. Bd4 {[%emt 0:01:29]} Rc6 {[%emt 0:02:07]} 38. Rc3 {[%emt 0:03:04]} Rc8 {[%emt 0:00:43]} 39. h4 {[%emt 0:04:42]} g6 {[%emt 0:00:56]} 40. b4 {[%emt 0:00:00]} axb4 41. axb4 {[%emt 0:03:16]} Ra8 {[%emt 0:00:27]} 42. Rc2 {[%emt 0:00:54]} Bc6 {[%emt 0:05:16]} 43. Ke3 {[%emt 0:03:42]} Ra3+ {[%emt 0:01:06]} 44. Kf4 {[%emt 0:01:33]} Rd3 {[%emt 0:01:33]} 45. Rf2 {[%emt 0:03:12]} Ke7 {[%emt 0:01:11]} 46. Be5 {[%emt 0:00:53]} Rd5 {[%emt 0:02:04]} 47. Ra2 {[%emt 0:02:16]} g5+ {[%emt 0:00:29]} 48. hxg5 hxg5+ 49. Kxg5 {[%emt 0:02:00]} Rxe5+ {[%emt 0:00:36]} 50. Kh6 {[%emt 0:00:08]} Re4 {[%emt 0:00:41]} 51. Rb2 {[%emt 0:00:58]} Rh4+ {[%emt 0:00:10]} 52. Kg5 {[%emt 0:00:21]} Rh2 {[%emt 0:00:17]} 53. Rb3 {[%emt 0:00:31]} Rxg2+ {[%emt 0:00:12]} 54. Kf4 {[%emt 0:00:07]} Bb5 {[%emt 0:00:33]} 55. Ra3 {[%emt 0:00:10]} Rb2 {[%emt 0:00:13]} 56. Ra7 {[%emt 0:00:20]} Rxb4+ {[%emt 0:00:09]} 57. Ke5 {[%emt 0:00:08]} Bc6 {[%emt 0:00:26]} 58. Ra4 {[%emt 0:00:12]} Rb5 {[%emt 0:00:40]} 59. Rc4 {[%emt 0:00:09]} b6 {[%emt 0:00:06]} 60. Kd4 {[%emt 0:00:18]} bxc5+ {[%emt 0:00:34]} 61. Ke5 {[%emt 0:00:12]} Rb4 {[%emt 0:00:39]} 62. Rh4 {[%emt 0:01:06]} Re4+ {[%emt 0:00:26]} 63. Rxe4 {[%emt 0:00:10]} Bxe4 {[%emt 0:00:02]} 64. Kxe4 {[%emt 0:00:09]} Kd6 {[%emt 0:00:00]} 65. Kd3 {[%emt 0:00:10]} Kd5 {[%emt 0:00:04]} 66. Kd2 {[%emt 0:00:11]} Kd4 {[%emt 0:00:04]} 67. Ke2 {[%emt 0:00:07]} e5 {[%emt 0:00:05]} 68. Kd2 {[%emt 0:00:05]} e4 {[%emt 0:00:04]} 69. Ke2 {[%emt 0:00:03]} c4 {[%emt 0:00:07]} 70. Kd1 {[%emt 0:00:06]} Kd3 {[%emt 0:00:04]} 71. Kc1 {[%emt 0:00:03]} c3 {[%emt 0:00:10]} 72. Kd1 {[%emt 0:00:03]} c2+ {[%emt 0:00:04]} 73. Kc1 {[%emt 0:00:08]} e3 {[%emt 0:00:03]} 74. Kb2 {[%emt 0:00:06]} e2 {[%emt 0:00:09]} 75. Ka3 {[%emt 0:00:03]} c1=Q+ {[%emt 0:00:11]} 76. Ka2 {[%emt 0:00:06]} Qc6 {[%emt 0:00:22]} 77. Kb3 {[%emt 0:00:04]} e1=R {[%emt 0:00:11]} 0-1